[Event "Open NK Rapid 2025"]
[Site "Helmond, Netherlands"]
[Date "2025.05.03"]
[Round "6.11"]
[White "Van Ravensteijn, Antal"]
[Black "Stolwijk, Colin"]
[Result "0-1"]
[TimeControl "15+5"]
[WhiteFideId "1060759"]
[BlackFideId "1033743"]
[WhiteElo "2048"]
[BlackElo "2286"]

1. Nf3 {[%clk 00:15:09]} {[%emt 00:00:01]} Nf6 {[%clk 00:15:09]} {[%emt
00:00:01]} 2. g3 {[%clk 00:15:12]} {[%emt 00:00:01]} g6 {[%clk 00:15:13]}
{[%emt 00:00:02]} 3. Bg2 {[%clk 00:15:16]} {[%emt 00:00:01]} Bg7 {[%clk
00:15:17]} {[%emt 00:00:01]} 4. O-O {[%clk 00:15:17]} {[%emt 00:00:02]} O-O
{[%clk 00:15:19]} {[%emt 00:00:04]} 5. c4 {[%clk 00:15:21]} {[%emt 00:00:02]}
d5 {[%clk 00:15:19]} {[%emt 00:00:05]} 6. cxd5 {[%clk 00:15:19]} {[%emt
00:00:07]} Nxd5 {[%clk 00:15:22]} {[%emt 00:00:01]} 7. e4 {[%clk 00:15:12]}
{[%emt 00:00:12]} Nb6 {[%clk 00:15:04]} {[%emt 00:00:24]} 8. Nc3 {[%clk
00:15:01]} {[%emt 00:00:16]} Nc6 {[%clk 00:14:54]} {[%emt 00:00:15]} 9. d3
{[%clk 00:14:29]} {[%emt 00:00:37]} a5 {[%clk 00:14:37]} {[%emt 00:00:22]} 10.
Be3 {[%clk 00:14:01]} {[%emt 00:00:32]} a4 {[%clk 00:14:00]} {[%emt 00:00:42]}
11. Bxb6 {[%clk 00:13:14]} {[%emt 00:00:52]} cxb6 {[%clk 00:14:03]} {[%emt
00:00:02]} 12. Nxa4 {[%clk 00:13:13]} {[%emt 00:00:06]} b5 {[%clk 00:14:00]}
{[%emt 00:00:09]} 13. Nc3 {[%clk 00:12:45]} {[%emt 00:00:32]} b4 {[%clk
00:14:00]} {[%emt 00:00:06]} 14. Nd5 {[%clk 00:12:34]} {[%emt 00:00:16]} e6
{[%clk 00:13:04]} {[%emt 00:01:01]} 15. Ne3 {[%clk 00:12:20]} {[%emt 00:00:18]}
Bxb2 {[%clk 00:13:06]} {[%emt 00:00:04]} 16. Rb1 {[%clk 00:12:23]} {[%emt
00:00:02]} Bg7 {[%clk 00:12:48]} {[%emt 00:00:22]} 17. Qb3 {[%clk 00:11:24]}
{[%emt 00:01:04]} Ra3 {[%clk 00:12:48]} {[%emt 00:00:06]} 18. Qc4 {[%clk
00:10:31]} {[%emt 00:00:58]} Qxd3 {[%clk 00:12:49]} {[%emt 00:00:03]} 19. Qxd3
{[%clk 00:10:21]} {[%emt 00:00:15]} Rxd3 {[%clk 00:12:52]} {[%emt 00:00:02]} 20.
Rfc1 {[%clk 00:10:09]} {[%emt 00:00:17]} Bh6 {[%clk 00:10:51]} {[%emt
00:02:06]} 21. Rd1 {[%clk 00:09:13]} {[%emt 00:01:02]} Rxd1+ {[%clk 00:10:19]}
{[%emt 00:00:36]} 22. Nxd1 {[%clk 00:09:13]} {[%emt 00:00:05]} e5 {[%clk
00:10:06]} {[%emt 00:00:18]} 23. Bf1 {[%clk 00:08:54]} {[%emt 00:00:24]} Be6
{[%clk 00:08:51]} {[%emt 00:01:21]} 24. Bb5 {[%clk 00:07:50]} {[%emt 00:01:09]}
Bxa2 {[%clk 00:08:51]} {[%emt 00:00:05]} 25. Rb2 {[%clk 00:07:51]} {[%emt
00:00:04]} b3 {[%clk 00:08:49]} {[%emt 00:00:07]} 26. Ne3 {[%clk 00:07:13]}
{[%emt 00:00:41]} Nd4 {[%clk 00:08:03]} {[%emt 00:00:52]} 27. Be2 {[%clk
00:06:17]} {[%emt 00:01:02]} Rc8 {[%clk 00:06:30]} {[%emt 00:01:37]} 28. Ne1
{[%clk 00:04:24]} {[%emt 00:01:58]} Rc1 {[%clk 00:06:10]} {[%emt 00:00:26]} 29.
N3g2 {[%clk 00:03:45]} {[%emt 00:00:43]} Rxe1+ {[%clk 00:05:39]} {[%emt
00:00:36]} 30. Nxe1 {[%clk 00:03:47]} {[%emt 00:00:04]} Bc1 {[%clk 00:05:42]}
{[%emt 00:00:02]} 31. Nd3 {[%clk 00:02:30]} {[%emt 00:01:22]} Bxb2 {[%clk
00:05:45]} {[%emt 00:00:02]} 32. Nxb2 {[%clk 00:02:34]} {[%emt 00:00:01]} Nxe2+
{[%clk 00:05:48]} {[%emt 00:00:02]} 33. Kf1 {[%clk 00:02:34]} {[%emt 00:00:05]}
Nd4 {[%clk 00:05:49]} {[%emt 00:00:04]} 34. f4 {[%clk 00:02:30]} {[%emt
00:00:09]} f6 {[%clk 00:05:38]} {[%emt 00:00:16]} 35. h3 {[%clk 00:02:13]}
{[%emt 00:00:22]} Bb1 {[%clk 00:05:40]} {[%emt 00:00:03]} 0-1

[Event "Open NK Rapid 2025"]
[Site "Helmond, Netherlands"]
[Date "2025.05.03"]
[Round "6.12"]
[White "Kuipers-Haast, Anne"]
[Black "Zecha, Oscar"]
[Result "1-0"]
[TimeControl "15+5"]
[WhiteFideId "1017292"]
[BlackFideId "1073826"]
[WhiteElo "2272"]
[BlackElo "1873"]

1. e4 {[%clk 00:15:08]} {[%emt 00:00:01]} e5 {[%clk 00:15:10]} {[%emt
00:00:01]} 2. Nf3 {[%clk 00:15:10]} {[%emt 00:00:03]} Nc6 {[%clk 00:15:14]}
{[%emt 00:00:01]} 3. Bb5 {[%clk 00:15:12]} {[%emt 00:00:03]} a6 {[%clk
00:15:18]} 4. Ba4 {[%clk 00:15:14]} {[%emt 00:00:02]} Nf6 {[%clk 00:15:19]}
{[%emt 00:00:04]} 5. d3 {[%clk 00:15:13]} {[%emt 00:00:06]} b5 {[%clk
00:15:17]} {[%emt 00:00:07]} 6. Bb3 {[%clk 00:15:17]} {[%emt 00:00:02]} Bc5
{[%clk 00:15:21]} {[%emt 00:00:01]} 7. O-O {[%clk 00:15:03]} {[%emt 00:00:18]}
O-O {[%clk 00:15:14]} {[%emt 00:00:12]} 8. c3 {[%clk 00:15:00]} {[%emt
00:00:08]} d6 {[%clk 00:15:14]} {[%emt 00:00:04]} 9. Bg5 {[%clk 00:14:38]}
{[%emt 00:00:27]} h6 {[%clk 00:14:13]} {[%emt 00:01:06]} 10. Bh4 {[%clk
00:14:40]} {[%emt 00:00:03]} Bb6 {[%clk 00:13:52]} {[%emt 00:00:27]} 11. Re1
{[%clk 00:13:54]} {[%emt 00:00:51]} Kh8 {[%clk 00:12:00]} {[%emt 00:01:57]} 12.
Nbd2 {[%clk 00:13:45]} {[%emt 00:00:14]} Be6 {[%clk 00:10:51]} {[%emt
00:01:14]} 13. Nf1 {[%clk 00:13:08]} {[%emt 00:00:41]} Bxb3 {[%clk 00:10:17]}
{[%emt 00:00:39]} 14. axb3 {[%clk 00:13:03]} {[%emt 00:00:11]} Re8 {[%clk
00:07:38]} {[%emt 00:02:44]} 15. Ne3 {[%clk 00:12:28]} {[%emt 00:00:39]} Bxe3
{[%clk 00:07:24]} {[%emt 00:00:19]} 16. fxe3 {[%clk 00:12:31]} {[%emt
00:00:02]} g5 {[%clk 00:06:21]} {[%emt 00:01:08]} 17. Bg3 {[%clk 00:11:41]}
{[%emt 00:00:56]} d5 {[%clk 00:05:02]} {[%emt 00:01:24]} 18. exd5 {[%clk
00:11:12]} {[%emt 00:00:34]} Qxd5 {[%clk 00:04:57]} {[%emt 00:00:09]} 19. e4
{[%clk 00:11:05]} {[%emt 00:00:12]} Qc5+ {[%clk 00:04:36]} {[%emt 00:00:27]} 20.
d4 {[%clk 00:10:36]} {[%emt 00:00:34]} Qb6 {[%clk 00:04:04]} {[%emt 00:00:37]}
21. Kh1 {[%clk 00:09:17]} {[%emt 00:01:23]} exd4 {[%clk 00:03:54]} {[%emt
00:00:16]} 22. e5 {[%clk 00:08:46]} {[%emt 00:00:36]} Nh5 {[%clk 00:01:49]}
{[%emt 00:02:10]} 23. Bf2 {[%clk 00:08:26]} {[%emt 00:00:25]} Rad8 {[%clk
00:01:40]} {[%emt 00:00:14]} 24. Nxg5 {[%clk 00:07:55]} {[%emt 00:00:35]} Nf4
{[%clk 00:00:34]} {[%emt 00:01:11]} 25. Nxf7+ {[%clk 00:07:41]} {[%emt
00:00:19]} Kh7 {[%clk 00:00:30]} {[%emt 00:00:10]} 26. Nxd8 {[%clk 00:07:27]}
{[%emt 00:00:19]} Rxd8 {[%clk 00:00:19]} {[%emt 00:00:16]} 27. Qg4 {[%clk
00:06:55]} {[%emt 00:00:37]} Ng6 {[%clk 00:00:11]} {[%emt 00:00:13]} 28. cxd4
{[%clk 00:05:42]} {[%emt 00:01:17]} Nxd4 {[%clk 00:00:12]} {[%emt 00:00:04]} 29.
Rad1 {[%clk 00:05:26]} {[%emt 00:00:21]} c5 {[%clk 00:00:16]} {[%emt 00:00:01]}
30. b4 {[%clk 00:05:24]} {[%emt 00:00:08]} Nc2 {[%clk 00:00:07]} {[%emt
00:00:14]} 31. Rd7+ {[%clk 00:05:11]} {[%emt 00:00:18]} Rxd7 {[%clk 00:00:10]}
{[%emt 00:00:01]} 32. Qxd7+ {[%clk 00:05:15]} {[%emt 00:00:01]} Kh8 {[%clk
00:00:08]} {[%emt 00:00:07]} 33. Qe8+ {[%clk 00:04:55]} {[%emt 00:00:25]} Kh7
{[%clk 00:00:07]} {[%emt 00:00:06]} 34. Rd1 {[%clk 00:04:46]} {[%emt 00:00:14]}
Nd4 {[%clk 00:00:07]} {[%emt 00:00:06]} 35. bxc5 {[%clk 00:04:47]} {[%emt
00:00:04]} Qc6 {[%clk 00:00:11]} 36. Qf7+ {[%clk 00:04:39]} {[%emt 00:00:13]}
Kh8 {[%clk 00:00:15]} 37. Rxd4 {[%clk 00:04:38]} {[%emt 00:00:05]} 1-0

[Event "Open NK Rapid 2025"]
[Site "Helmond, Netherlands"]
[Date "2025.05.03"]
[Round "6.13"]
[White "Aarts, Joaquin"]
[Black "Van Batenburg, Mees"]
[Result "0-1"]
[TimeControl "15+5"]
[WhiteFideId "1078224"]
[BlackFideId "1078259"]
[WhiteElo "2027"]
[BlackElo "2217"]

1. d4 {[%clk 00:15:09]} e6 {[%clk 00:15:09]} {[%emt 00:00:01]} 2. c4 {[%clk
00:15:09]} {[%emt 00:00:05]} f5 {[%clk 00:15:07]} {[%emt 00:00:07]} 3. a3
{[%clk 00:15:13]} {[%emt 00:00:02]} Nf6 {[%clk 00:14:54]} {[%emt 00:00:18]} 4.
Bf4 {[%clk 00:15:01]} {[%emt 00:00:17]} b6 {[%clk 00:14:48]} {[%emt 00:00:11]}
5. e3 {[%clk 00:15:01]} {[%emt 00:00:04]} Bb7 {[%clk 00:14:45]} {[%emt
00:00:09]} 6. Nf3 {[%clk 00:15:02]} {[%emt 00:00:03]} Ne4 {[%clk 00:14:45]}
{[%emt 00:00:04]} 7. Be2 {[%clk 00:14:59]} {[%emt 00:00:08]} Be7 {[%clk
00:14:28]} {[%emt 00:00:23]} 8. h3 {[%clk 00:14:42]} {[%emt 00:00:21]} O-O
{[%clk 00:14:26]} {[%emt 00:00:08]} 9. O-O {[%clk 00:14:44]} {[%emt 00:00:03]}
d6 {[%clk 00:14:28]} {[%emt 00:00:02]} 10. Nfd2 {[%clk 00:14:29]} {[%emt
00:00:21]} Nxd2 {[%clk 00:14:16]} {[%emt 00:00:18]} 11. Qxd2 {[%clk 00:14:31]}
{[%emt 00:00:02]} Nd7 {[%clk 00:14:12]} {[%emt 00:00:09]} 12. Nc3 {[%clk
00:14:32]} {[%emt 00:00:04]} a5 {[%clk 00:14:15]} {[%emt 00:00:02]} 13. b4
{[%clk 00:13:52]} {[%emt 00:00:45]} Rf6 {[%clk 00:12:56]} {[%emt 00:01:25]} 14.
Rac1 {[%clk 00:11:27]} {[%emt 00:02:29]} Rg6 {[%clk 00:12:49]} {[%emt
00:00:12]} 15. f3 {[%clk 00:11:30]} {[%emt 00:00:03]} e5 {[%clk 00:10:33]}
{[%emt 00:02:21]} 16. Bh2 {[%clk 00:11:22]} {[%emt 00:00:11]} Bg5 {[%clk
00:09:30]} {[%emt 00:01:08]} 17. d5 {[%clk 00:09:10]} {[%emt 00:02:18]} axb4
{[%clk 00:09:06]} {[%emt 00:00:30]} 18. axb4 {[%clk 00:09:13]} {[%emt
00:00:02]} Bf6 {[%clk 00:09:08]} {[%emt 00:00:02]} 19. Nb5 {[%clk 00:09:09]}
{[%emt 00:00:09]} Ba6 {[%clk 00:08:25]} {[%emt 00:00:49]} 20. Bd3 {[%clk
00:08:22]} {[%emt 00:00:51]} Rg5 {[%clk 00:07:21]} {[%emt 00:01:09]} 21. f4
{[%clk 00:08:19]} {[%emt 00:00:08]} Rh5 {[%clk 00:06:34]} {[%emt 00:00:51]} 22.
Be2 {[%clk 00:06:06]} {[%emt 00:02:19]} Rh6 {[%clk 00:06:16]} {[%emt 00:00:24]}
23. fxe5 {[%clk 00:06:08]} {[%emt 00:00:03]} Bxe5 {[%clk 00:06:01]} {[%emt
00:00:20]} 24. Rxf5 {[%clk 00:06:00]} {[%emt 00:00:12]} Bc8 {[%clk 00:05:22]}
{[%emt 00:00:44]} 25. Rf3 {[%clk 00:05:29]} {[%emt 00:00:35]} Bxh2+ {[%clk
00:05:26]} {[%emt 00:00:02]} 26. Kxh2 {[%clk 00:05:33]} {[%emt 00:00:02]} Ne5
{[%clk 00:05:30]} {[%emt 00:00:01]} 27. Rg3 {[%clk 00:05:23]} {[%emt 00:00:14]}
Bd7 {[%clk 00:04:56]} {[%emt 00:00:38]} 28. Nd4 {[%clk 00:05:15]} {[%emt
00:00:14]} Qe7 {[%clk 00:04:40]} {[%emt 00:00:22]} 29. Rf1 {[%clk 00:05:11]}
{[%emt 00:00:07]} Rh4 {[%clk 00:04:23]} {[%emt 00:00:23]} 30. Bd3 {[%clk
00:04:48]} {[%emt 00:00:28]} Ra3 {[%clk 00:04:06]} {[%emt 00:00:22]} 31. Be2
{[%clk 00:04:37]} {[%emt 00:00:16]} Ng6 {[%clk 00:03:28]} {[%emt 00:00:43]} 32.
Qc1 {[%clk 00:03:58]} {[%emt 00:00:44]} Ra2 {[%clk 00:03:16]} {[%emt 00:00:17]}
33. Bd3 {[%clk 00:03:49]} {[%emt 00:00:14]} Bxh3 {[%clk 00:02:59]} {[%emt
00:00:21]} 34. Kg1 {[%clk 00:03:00]} {[%emt 00:00:54]} Qe5 {[%clk 00:02:03]}
{[%emt 00:01:02]} 35. Qe1 {[%clk 00:01:30]} {[%emt 00:01:35]} Bxg2 {[%clk
00:02:07]} {[%emt 00:00:02]} 36. Rxg2 {[%clk 00:00:15]} {[%emt 00:01:20]} Rxg2+
{[%clk 00:02:11]} 37. Kxg2 {[%clk 00:00:19]} Qh2+ {[%clk 00:02:15]} {[%emt
00:00:02]} 38. Kf3 {[%clk 00:00:23]} {[%emt 00:00:01]} Ne5# {[%clk 00:02:18]}
{[%emt 00:00:01]} 0-1

[Event "Open NK Rapid 2025"]
[Site "Helmond, Netherlands"]
[Date "2025.05.03"]
[Round "6.14"]
[White "Apon, Iwahn"]
[Black "Van Roon, Sjoerd"]
[Result "0-1"]
[TimeControl "15+5"]
[WhiteFideId "1056115"]
[BlackFideId "1051075"]
[WhiteElo "1987"]
[BlackElo "2179"]

1. Nf3 {[%clk 00:15:01]} {[%emt 00:00:07]} d5 {[%clk 00:15:09]} {[%emt
00:00:02]} 2. d4 {[%clk 00:14:55]} {[%emt 00:00:10]} Nf6 {[%clk 00:15:11]}
{[%emt 00:00:04]} 3. c4 {[%clk 00:14:53]} {[%emt 00:00:06]} c6 {[%clk
00:15:15]} {[%emt 00:00:02]} 4. Qc2 {[%clk 00:14:53]} {[%emt 00:00:05]} e6
{[%clk 00:14:59]} {[%emt 00:00:22]} 5. g3 {[%clk 00:14:35]} {[%emt 00:00:22]}
Nbd7 {[%clk 00:14:50]} {[%emt 00:00:14]} 6. Bg2 {[%clk 00:14:37]} {[%emt
00:00:02]} Bd6 {[%clk 00:14:50]} {[%emt 00:00:06]} 7. Nbd2 {[%clk 00:14:38]}
{[%emt 00:00:04]} O-O {[%clk 00:14:51]} {[%emt 00:00:04]} 8. O-O {[%clk
00:14:37]} {[%emt 00:00:05]} b6 {[%clk 00:14:06]} {[%emt 00:00:51]} 9. cxd5
{[%clk 00:14:07]} {[%emt 00:00:35]} cxd5 {[%clk 00:13:35]} {[%emt 00:00:37]} 10.
e4 {[%clk 00:12:47]} {[%emt 00:01:25]} dxe4 {[%clk 00:13:06]} {[%emt 00:00:33]}
11. Nxe4 {[%clk 00:12:41]} {[%emt 00:00:10]} Nxe4 {[%clk 00:12:25]} {[%emt
00:00:47]} 12. Qxe4 {[%clk 00:12:44]} {[%emt 00:00:02]} Ba6 {[%clk 00:12:29]}
{[%emt 00:00:02]} 13. Ng5 {[%clk 00:10:55]} {[%emt 00:01:53]} Nf6 {[%clk
00:12:29]} {[%emt 00:00:06]} 14. Qxa8 {[%clk 00:10:53]} {[%emt 00:00:07]} Qxa8
{[%clk 00:12:32]} {[%emt 00:00:02]} 15. Bxa8 {[%clk 00:10:57]} {[%emt
00:00:02]} Bxf1 {[%clk 00:12:35]} {[%emt 00:00:02]} 16. Kxf1 {[%clk 00:10:53]}
{[%emt 00:00:08]} Rxa8 {[%clk 00:12:38]} {[%emt 00:00:02]} 17. Be3 {[%clk
00:09:55]} {[%emt 00:01:03]} Kf8 {[%clk 00:12:05]} {[%emt 00:00:37]} 18. Rc1
{[%clk 00:08:46]} {[%emt 00:01:15]} Ke7 {[%clk 00:11:53]} {[%emt 00:00:17]} 19.
Ke2 {[%clk 00:08:39]} {[%emt 00:00:13]} h6 {[%clk 00:11:56]} {[%emt 00:00:02]}
20. Nf3 {[%clk 00:08:38]} {[%emt 00:00:06]} Nd5 {[%clk 00:12:00]} {[%emt
00:00:01]} 21. Nd2 {[%clk 00:08:09]} {[%emt 00:00:34]} Kd7 {[%clk 00:11:14]}
{[%emt 00:00:50]} 22. Ne4 {[%clk 00:08:06]} {[%emt 00:00:08]} f5 {[%clk
00:09:53]} {[%emt 00:01:26]} 23. Nc3 {[%clk 00:08:02]} {[%emt 00:00:09]} g5
{[%clk 00:09:48]} {[%emt 00:00:10]} 24. f3 {[%clk 00:07:55]} {[%emt 00:00:12]}
Nxe3 {[%clk 00:08:00]} {[%emt 00:01:54]} 25. Kxe3 {[%clk 00:07:59]} {[%emt
00:00:01]} h5 {[%clk 00:08:04]} {[%emt 00:00:01]} 26. Nb5 {[%clk 00:06:08]}
{[%emt 00:01:56]} Bb8 {[%clk 00:06:38]} {[%emt 00:01:29]} 27. d5 {[%clk
00:04:16]} {[%emt 00:01:58]} e5 {[%clk 00:06:42]} {[%emt 00:00:02]} 28. d6
{[%clk 00:04:01]} {[%emt 00:00:20]} a6 {[%clk 00:06:41]} {[%emt 00:00:06]} 29.
Nc7 {[%clk 00:04:03]} {[%emt 00:00:02]} Ra7 {[%clk 00:06:44]} {[%emt 00:00:02]}
30. Nd5 {[%clk 00:04:02]} {[%emt 00:00:07]} Kxd6 {[%clk 00:05:28]} {[%emt
00:01:21]} 31. Nxb6 {[%clk 00:04:00]} {[%emt 00:00:06]} Rb7 {[%clk 00:05:28]}
{[%emt 00:00:05]} 32. Nc4+ {[%clk 00:04:01]} {[%emt 00:00:05]} Kd5 {[%clk
00:05:17]} {[%emt 00:00:16]} 33. b3 {[%clk 00:04:00]} {[%emt 00:00:05]} Ba7+
{[%clk 00:05:21]} {[%emt 00:00:02]} 34. Kd3 {[%clk 00:03:54]} {[%emt 00:00:11]}
g4 {[%clk 00:04:19]} {[%emt 00:01:07]} 35. Re1 {[%clk 00:03:34]} {[%emt
00:00:24]} Bd4 {[%clk 00:04:15]} {[%emt 00:00:10]} 36. Ne3+ {[%clk 00:03:06]}
{[%emt 00:00:33]} Bxe3 {[%clk 00:04:13]} {[%emt 00:00:06]} 37. Kxe3 {[%clk
00:03:06]} {[%emt 00:00:05]} Rc7 {[%clk 00:04:12]} {[%emt 00:00:06]} 38. Rd1+
{[%clk 00:03:04]} {[%emt 00:00:07]} Ke6 {[%clk 00:04:15]} {[%emt 00:00:02]} 39.
Rd2 {[%clk 00:03:01]} {[%emt 00:00:08]} Rc3+ {[%clk 00:04:14]} {[%emt
00:00:06]} 40. Ke2 {[%clk 00:02:57]} {[%emt 00:00:10]} gxf3+ {[%clk 00:04:12]}
{[%emt 00:00:06]} 41. Kf2 {[%clk 00:02:59]} {[%emt 00:00:03]} e4 {[%clk
00:04:16]} {[%emt 00:00:01]} 42. Rd8 {[%clk 00:03:00]} {[%emt 00:00:04]} Rc2+
{[%clk 00:04:20]} {[%emt 00:00:02]} 43. Ke3 {[%clk 00:03:03]} {[%emt 00:00:01]}
Re2+ {[%clk 00:04:22]} {[%emt 00:00:03]} 44. Kf4 {[%clk 00:03:07]} {[%emt
00:00:01]} f2 {[%clk 00:04:26]} {[%emt 00:00:02]} 45. Rd1 {[%clk 00:02:58]}
{[%emt 00:00:14]} Re1 {[%clk 00:04:30]} {[%emt 00:00:01]} 46. Rxe1 {[%clk
00:03:03]} fxe1=Q {[%clk 00:04:30]} {[%emt 00:00:05]} 0-1

[Event "Open NK Rapid 2025"]
[Site "Helmond, Netherlands"]
[Date "2025.05.03"]
[Round "6.15"]
[White "Landman, Renzo"]
[Black "Labruyere, Roger"]
[Result "1/2-1/2"]
[TimeControl "15+5"]
[WhiteFideId "40106306"]
[BlackFideId "1059505"]
[WhiteElo "1975"]
[BlackElo "2117"]

1. e4 {[%clk 00:15:05]} {[%emt 00:00:03]} c5 {[%clk 00:15:09]} {[%emt
00:00:02]} 2. Nf3 {[%clk 00:15:06]} {[%emt 00:00:04]} d6 {[%clk 00:15:13]}
{[%emt 00:00:02]} 3. c3 {[%clk 00:15:05]} {[%emt 00:00:06]} Nf6 {[%clk
00:15:16]} {[%emt 00:00:02]} 4. h3 {[%clk 00:15:06]} {[%emt 00:00:03]} Nc6
{[%clk 00:15:19]} {[%emt 00:00:02]} 5. Bd3 {[%clk 00:15:07]} {[%emt 00:00:04]}
e5 {[%clk 00:15:22]} {[%emt 00:00:02]} 6. Bc2 {[%clk 00:15:08]} {[%emt
00:00:05]} g6 {[%clk 00:15:26]} {[%emt 00:00:01]} 7. O-O {[%clk 00:15:09]}
{[%emt 00:00:03]} Bg7 {[%clk 00:15:29]} {[%emt 00:00:02]} 8. d4 {[%clk
00:15:10]} {[%emt 00:00:04]} cxd4 {[%clk 00:15:32]} {[%emt 00:00:02]} 9. cxd4
{[%clk 00:15:12]} {[%emt 00:00:03]} O-O {[%clk 00:15:34]} {[%emt 00:00:04]} 10.
d5 {[%clk 00:13:03]} {[%emt 00:02:13]} Nb4 {[%clk 00:15:37]} {[%emt 00:00:02]}
11. Nc3 {[%clk 00:12:59]} {[%emt 00:00:08]} Nxc2 {[%clk 00:15:40]} {[%emt
00:00:03]} 12. Qxc2 {[%clk 00:13:01]} {[%emt 00:00:03]} Bd7 {[%clk 00:15:43]}
{[%emt 00:00:01]} 13. a4 {[%clk 00:12:31]} {[%emt 00:00:36]} Nh5 {[%clk
00:15:44]} {[%emt 00:00:04]} 14. g4 {[%clk 00:09:53]} {[%emt 00:02:42]} Nf4
{[%clk 00:15:45]} {[%emt 00:00:05]} 15. Bxf4 {[%clk 00:09:34]} {[%emt
00:00:24]} exf4 {[%clk 00:15:48]} {[%emt 00:00:02]} 16. Qd2 {[%clk 00:06:52]}
{[%emt 00:02:47]} g5 {[%clk 00:15:39]} {[%emt 00:00:14]} 17. Kg2 {[%clk
00:06:17]} {[%emt 00:00:39]} Rc8 {[%clk 00:14:49]} {[%emt 00:00:56]} 18. Nd4
{[%clk 00:06:05]} {[%emt 00:00:17]} Rc4 {[%clk 00:14:42]} {[%emt 00:00:12]} 19.
Nf5 {[%clk 00:04:27]} {[%emt 00:01:42]} Bxf5 {[%clk 00:14:42]} {[%emt
00:00:06]} 20. exf5 {[%clk 00:04:24]} {[%emt 00:00:08]} Bxc3 {[%clk 00:14:06]}
{[%emt 00:00:42]} 21. bxc3 {[%clk 00:04:26]} {[%emt 00:00:03]} Qa5 {[%clk
00:14:09]} {[%emt 00:00:01]} 22. Rfb1 {[%clk 00:03:34]} {[%emt 00:00:57]} Rxc3
{[%clk 00:14:12]} {[%emt 00:00:03]} 23. Qd4 {[%clk 00:03:35]} {[%emt 00:00:03]}
Rfc8 {[%clk 00:10:18]} {[%emt 00:03:59]} 24. Rxb7 {[%clk 00:03:03]} {[%emt
00:00:37]} R3c4 {[%clk 00:09:18]} {[%emt 00:01:05]} 25. Rxa7 {[%clk 00:01:06]}
{[%emt 00:02:02]} Rxd4 {[%clk 00:09:00]} {[%emt 00:00:23]} 26. Rxa5 {[%clk
00:01:10]} {[%emt 00:00:02]} Rc2 {[%clk 00:08:38]} {[%emt 00:00:27]} 27. f6
{[%clk 00:00:58]} {[%emt 00:00:16]} h5 {[%clk 00:08:39]} {[%emt 00:00:05]} 28.
gxh5 {[%clk 00:00:47]} {[%emt 00:00:15]} Rd3 {[%clk 00:08:38]} {[%emt
00:00:07]} 29. Ra8+ {[%clk 00:00:49]} {[%emt 00:00:03]} Kh7 {[%clk 00:08:42]}
30. Rf8 {[%clk 00:00:36]} {[%emt 00:00:18]} Rg3+ {[%clk 00:08:46]} {[%emt
00:00:02]} 31. Kh1 {[%clk 00:00:30]} {[%emt 00:00:10]} Rxh3+ {[%clk 00:08:50]}
{[%emt 00:00:02]} 32. Kg1 {[%clk 00:00:30]} {[%emt 00:00:04]} Rxh5 {[%clk
00:08:51]} {[%emt 00:00:05]} 33. Rxf7+ {[%clk 00:00:34]} Kg6 {[%clk 00:08:55]}
{[%emt 00:00:01]} 34. Rd7 {[%clk 00:00:36]} {[%emt 00:00:02]} Kxf6 {[%clk
00:07:42]} {[%emt 00:01:19]} 35. Rxd6+ {[%clk 00:00:35]} {[%emt 00:00:05]} Ke5
{[%clk 00:07:46]} {[%emt 00:00:01]} 36. Rd8 {[%clk 00:00:30]} {[%emt 00:00:10]}
Ke4 {[%clk 00:06:54]} {[%emt 00:00:57]} 37. Kg2 {[%clk 00:00:22]} {[%emt
00:00:13]} g4 {[%clk 00:06:58]} {[%emt 00:00:02]} 38. Re1+ {[%clk 00:00:22]}
{[%emt 00:00:04]} Kd3 {[%clk 00:06:51]} {[%emt 00:00:12]} 39. d6 {[%clk
00:00:15]} {[%emt 00:00:12]} g3 {[%clk 00:06:52]} {[%emt 00:00:04]} 40. Kf3
{[%clk 00:00:08]} {[%emt 00:00:13]} Rxf2 {[%clk 00:05:57]} {[%emt 00:01:00]} 41.
Kg4 {[%clk 00:00:12]} {[%emt 00:00:01]} g2 {[%clk 00:05:51]} {[%emt 00:00:10]}
42. Rg1 {[%clk 00:00:11]} {[%emt 00:00:06]} Rh1 {[%clk 00:05:54]} {[%emt
00:00:02]} 43. d7 {[%clk 00:00:12]} {[%emt 00:00:05]} Rh7 {[%clk 00:04:54]}
{[%emt 00:01:05]} 44. a5 {[%clk 00:00:14]} {[%emt 00:00:02]} Rg7+ {[%clk
00:04:46]} {[%emt 00:00:14]} 45. Kf5 {[%clk 00:00:14]} {[%emt 00:00:04]} f3
{[%clk 00:04:50]} 46. Kf6 {[%clk 00:00:10]} {[%emt 00:00:10]} Rh7 {[%clk
00:04:15]} {[%emt 00:00:40]} 47. Kg6 {[%clk 00:00:11]} {[%emt 00:00:04]} Rxd7
{[%clk 00:04:15]} {[%emt 00:00:05]} 48. Rxd7+ {[%clk 00:00:15]} Ke3 {[%clk
00:04:19]} 49. a6 {[%clk 00:00:14]} {[%emt 00:00:06]} Ra2 {[%clk 00:04:21]}
{[%emt 00:00:03]} 50. a7 {[%clk 00:00:07]} {[%emt 00:00:12]} Kf2 {[%clk
00:04:23]} {[%emt 00:00:03]} 51. Rc1 {[%clk 00:00:10]} {[%emt 00:00:01]} g1=Q+
{[%clk 00:04:20]} {[%emt 00:00:08]} 52. Rxg1 {[%clk 00:00:14]} {[%emt
00:00:01]} Kxg1 {[%clk 00:04:24]} {[%emt 00:00:01]} 53. Rd1+ {[%clk 00:00:08]}
{[%emt 00:00:12]} Kg2 {[%clk 00:04:27]} {[%emt 00:00:02]} 54. Rd2+ {[%clk
00:00:12]} {[%emt 00:00:01]} Rxd2 {[%clk 00:04:31]} {[%emt 00:00:01]} 55. a8=Q
{[%clk 00:00:14]} {[%emt 00:00:03]} Re2 {[%clk 00:03:45]} {[%emt 00:00:50]} 56.
Kf5 {[%clk 00:00:11]} {[%emt 00:00:08]} Rb2 {[%clk 00:03:23]} {[%emt 00:00:27]}
57. Qc6 {[%clk 00:00:06]} {[%emt 00:00:11]} Kg3 {[%clk 00:02:43]} {[%emt
00:00:43]} 58. Qg6+ {[%clk 00:00:09]} {[%emt 00:00:03]} Kf2 {[%clk 00:02:47]}
{[%emt 00:00:02]} 59. Qg4 {[%clk 00:00:08]} {[%emt 00:00:05]} Rb5+ {[%clk
00:02:37]} {[%emt 00:00:16]} 60. Ke6 {[%clk 00:00:11]} {[%emt 00:00:02]} Ke3
{[%clk 00:02:09]} {[%emt 00:00:33]} 61. Qc4 {[%clk 00:00:15]} {[%emt 00:00:01]}
Rb6+ {[%clk 00:02:01]} {[%emt 00:00:13]} 62. Kd5 {[%clk 00:00:19]} f2 {[%clk
00:01:51]} {[%emt 00:00:14]} 63. Qd4+ {[%clk 00:00:22]} {[%emt 00:00:02]} Ke2
{[%clk 00:01:55]} {[%emt 00:00:01]} 64. Qxb6 {[%clk 00:00:24]} {[%emt
00:00:03]} f1=Q {[%clk 00:01:57]} {[%emt 00:00:03]} 1/2-1/2